Cogmind - Beta 9.4 *** ADVENTURER MODE // 2020.08.19 @ 21:49:33 Player: Scyralis Result: Self-destructed Performance ------------- Evolutions (2) 1000 Regions Visited (5) 1000 Robots Destroyed (69) 345 Value Destroyed (1869) 1869 Prototype IDs (18) 360 Alien Tech Used (0) 0 Bonus (724) 724 TOTAL SCORE: 5298 Bonus ------- High Alert Combat Kills 144 Entered Garrisons 200 Used RIF Installer 500 Friendly Fire -120 Cogmind --------- Core Integrity 373/550 Matter 189/300 Energy 396/400 System Corruption 0% Temperature Cool (9) Movement Core (50) Location -8/Materials Parts ------- > --- POWER (1) -------- (None) > --- PROPULSION (3) --- (None) > --- UTILITY (5) ------ Compact Battery Advanced Weight Redist. System Advanced Visual Processing Unit Transmission Jammer Hacking Suite > --- WEAPON (2) ------- High-powered Shotgun > --- INVENTORY (4) ---- Advanced Weight Redist. System Advanced Targeting Computer Peak State ------------ > --- POWER ------------ Nuclear Core > --- PROPULSION ------- Improved Hover Unit Improved Hover Unit > --- UTILITY ---------- Compact Battery Advanced Weight Redist. System Advanced Visual Processing Unit Hacking Suite Hacking Suite > --- WEAPON ----------- Shock Bomb Launcher Shock Bomb Launcher > --- INVENTORY -------- Advanced Weight Redist. System [Rating: 28] Favorites ----------- Power Light Ion Engine Engine Light Ion Engine Power Core Nuclear Core Propulsion Hover Unit Hover Unit Hover Unit Flight Unit Flight Unit Utility Hacking Suite Device Advanced Weight Redist. System Storage Compact Battery Processor Targeting Computer Hackware Hacking Suite Weapon Shock Bomb Launcher Energy Gun Small Laser Ballistic Gun Autogun Launcher Shock Bomb Launcher Special Melee Weapon Improved Datajack Build | -11 -10 -9 -8 -8 -8 ------- Run | Scr Mat Mat Mat Gar Mat Slots Evolved 4 | . . 2 2 . . Power . | . . . . . . Propulsion 1 | . . . 1 . . Utility 3 | . . 2 1 . . Weapon . | . . . . . . Parts Attached 43 | 1 9 21 3 . 9 Power 10 | 1 2 5 . . 2 Engine 9 | 1 2 4 . . 2 Core 1 | . . 1 . . . Reactor . | . . . . . . Propulsion 7 | . 1 5 . . 1 Treads . | . . . . . . Leg . | . . . . . . Wheel . | . . . . . . Hover 6 | . 1 5 . . . Flight 1 | . . . . . 1 Utility 12 | . 2 7 2 . 1 Device 5 | . . 4 . . 1 Storage 1 | . . . 1 . . Processor 4 | . 2 1 1 . . Hackware 2 | . . 2 . . . Protection . | . . . . . . Artifact . | . . . . . . Weapon 14 | . 4 4 1 . 5 Energy Gun 3 | . 2 . . . 1 Energy Cannon . | . . . . . . Ballistic Gun 2 | . . 1 . . 1 Ballistic Cannon . | . . . . . . Launcher 7 | . 2 3 1 . 1 Special Weapon . | . . . . . . Impact Weapon . | . . . . . . Slashing Weapon . | . . . . . . Piercing Weapon . | . . . . . . Special Melee Weapon 2 | . . . . . 2 Unidentified Prototypes . | . . . . . . Parts Lost 19 | . 4 7 . . 8 Power 2 | . 1 . . . 1 Propulsion 7 | . 1 3 . . 3 Utility 3 | . . 2 . . 1 Weapon 7 | . 2 2 . . 3 Highest Loss Streak 4 | . 4 2 . . 4 Average Slot Usage (%) 77 | . 84 74 81 81 66 Engine 7 | . 12 7 . . 6 Core 2 | . . 1 9 9 2 Hover 17 | . 26 13 18 18 6 Device 7 | . . 10 9 9 12 Storage 2 | . . . 8 9 9 Processor 17 | . 25 17 9 9 9 Hackware 10 | . . 14 18 18 14 Energy Gun 4 | . 12 . . . . Ballistic Gun 2 | . . 5 . . . Launcher 5 | . 6 5 9 9 3 Naked Turns . | . . . . . . Heaviest Build 20 | 3 8 19 20 14 17 Greatest Support 30 | 3 12 30 16 16 17 Greatest Overweight (x) 2 | . . 2 1 . 1 Average Overweight (x) . | . . . . . . Largest Inventory Capacity 4 | 4 4 4 4 4 4 Average Capacity 4 | 4 4 4 4 4 4 Most Carried 4 | 1 2 4 4 4 4 Average Carried 1 | . . 2 2 4 3 Final Capacity 4 | 4 4 4 4 4 4 Final Carried 4 | . . 2 4 4 2 Class Distribution -------------------- 48% | Hacker-Mutant 34% | Mutant 17% | Scavenger-Mutant Dominant Class ---------------- Mutant | -10/Materials Hacker-Mutant | -9/Materials Hacker-Mutant | -8/Materials Hacker-Mutant | -8/Garrison Hacker-Mutant | -8/Materials Resources | -11 -10 -9 -8 -8 -8 ----------- Run | Scr Mat Mat Mat Gar Mat Matter Collected 1247 | 210 220 537 219 . 61 Remotely . | . . . . . . Salvage Created 1704 | . 347 985 231 . 141 Parts 126 | . 26 76 13 . 11 Haulers Intercepted 6 | . 2 3 1 . . Recyclers Shooed 3 | . 2 1 . . . Parts Field Recycled . | . . . . . . Retrieved Matter . | . . . . . . Parts Self-Destructed . | . . . . . . Prevented . | . . . . . . Kills | -11 -10 -9 -8 -8 -8 ------- Run | Scr Mat Mat Mat Gar Mat Combat Hostiles Destroyed 44 | . 7 28 3 . 6 Melee 1 | . . 1 . . . Guns 3 | . . 3 . . . AOE 40 | . 7 24 3 . 6 Classes Destroyed 10 | . 5 5 . . . Worker 1 | . . 1 . . . Builder 4 | . 3 1 . . . Hauler 6 | . 2 3 1 . . Recycler 2 | . 1 1 . . . Operator 4 | . . 4 . . . Watcher 7 | . 3 3 . . 1 Swarmer 8 | . . 3 . . 5 Grunt 31 | . 7 20 4 . . Duelist 2 | . . 2 . . . Sentry 4 | . . 3 . . 1 Best Kill Streak 17 | . 6 17 3 . 3 Combat Bots Only 14 | . 4 14 2 . 3 Max Kills in Single Turn 3 | . 3 3 1 . 2 Gunslinging . | . . . . . . Exploded 2 | . 2 2 1 . 2 Melee 1 | . . 1 . . . Uniques/NPCs Destroyed . | . . . . . . Combat | -11 -10 -9 -8 -8 -8 -------- Run | Scr Mat Mat Mat Gar Mat Damage Taken 1501 | . 226 632 107 . 536 Core 452 | . 17 258 13 . 164 Absorbed by Shields . | . . . . . . Core Remaining (%) 76 | 100 93 35 . . . Volleys Fired 134 | . 39 66 9 . 20 Largest 2 | . 2 2 1 . 1 Hottest 80 | . 80 72 36 . 50 Shots Fired 155 | . 55 71 9 . 20 Gun 79 | . 35 35 . . 9 Cannon . | . . . . . . Launcher 76 | . 20 36 9 . 11 Special . | . . . . . . Kinetic 40 | . . 35 . . 5 Thermal 21 | . 21 . . . . Explosive 52 | . 20 32 . . . Electromagnetic 42 | . 14 4 9 . 15 Robot Hit Streak 27 | . 27 13 6 . 5 Robot Miss Streak 3 | . 1 2 2 . 3 Penetration Max . | . . . . . . Secondary Targets . | . . . . . . Shots Hit Robots 104 | . 40 48 6 . 10 Core Hits 113 | . 26 68 10 . 9 Critical Hits 1 | . . 1 . . . Critical Kills 1 | . . 1 . . . Critical Parts Destroyed . | . . . . . . Melee Attacks . | . . . . . . Impact . | . . . . . . Slashing . | . . . . . . Piercing . | . . . . . . Sneak Attacks . | . . . . . . Combat Hostiles . | . . . . . . Follow-up Attacks . | . . . . . . Damage Inflicted 5533 | . 1622 2686 545 . 680 Guns 855 | . 304 409 . . 142 Cannons . | . . . . . . Explosions 4669 | . 1318 2268 545 . 538 Melee . | . . . . . . Ramming 9 | . . 9 . . . Kinetic 498 | . . 409 . . 89 Thermal 328 | . 178 . 150 . . Explosive 3701 | . 1289 2163 . . 249 Electromagnetic 997 | . 155 105 395 . 342 Impact . | . . . . . . Slashing . | . . . . . . Piercing . | . . . . . . Highest Corruption . | . . . . . . Average Corruption . | . . . . . . Corruption Purged . | . . . . . . Overload Shots . | . . . . . . Overflow Damage 261 | . 74 82 37 . 68 Projectiles . | . . . . . . Explosions 261 | . 74 82 37 . 68 Melee . | . . . . . . Knockbacks . | . . . . . . Impact . | . . . . . . Kinetic . | . . . . . . Secondary . | . . . . . . Self-Inflicted Damage 180 | . . 63 16 . 101 Shots 10 | . . 4 2 . 4 Rammed 3 | . . 3 . . . Targets Rammed 3 | . . 3 . . . Kicked . | . . . . . . Crushed . | . . . . . . Highest Temperature 60 | . 60 21 10 . 43 Average Temperature 16 | . 23 4 5 . 19 Received Heat Transfer 759 | . 168 303 36 . 252 Siege Activations . | . . . . . . Robots Corrupted 1 | . . . . . 1 Combat Hostiles . | . . . . . . Parts Fried 1 | . . . . . 1 Impact Corruptions . | . . . . . . Robots Melted . | . . . . . . Combat Hostiles . | . . . . . . Parts Melted 1 | . . . 1 . . Heat Transferred 598 | . 398 . 200 . . Parts Sabotaged . | . . . . . . Parts Stolen . | . . . . . . Parts Stripped . | . . . . . . Power Chain Reactions 5 | . 1 . 3 . 1 Missiles Intercepted . | . . . . . . Alert | -11 -10 -9 -8 -8 -8 ------- Run | Scr Mat Mat Mat Gar Mat Peak Influence 705 | . 300 705 475 270 413 Average Influence 284 | . 142 383 327 270 288 Maximum Alert Level 3 | . 1 3 2 1 2 Low Security (%) 34 | 100 72 20 . . 19 Level 1 48 | . 27 43 84 100 77 Level 2 16 | . . 33 15 . 2 Level 3 1 | . . 2 . . . Level 4 . | . . . . . . Level 5 . | . . . . . . High Security . | . . . . . . Max Security . | . . . . . . Squads Dispatched 15 | . 1 8 3 . 3 Investigation 8 | . 1 4 1 . 2 Extermination . | . . . . . . Reinforcement 6 | . . 4 1 . 1 Assault . | . . . . . . Garrison 1 | . . . 1 . . Intercept . | . . . . . . Construction Impeded 2 | . . 1 . . 1 Haulers Reinforced . | . . . . . . Stealth | -11 -10 -9 -8 -8 -8 --------- Run | Scr Mat Mat Mat Gar Mat Distress Signals 4 | . . 2 1 . 1 Communications Jammed 13 | . . . . . 13 Distress Signals 13 | . . . . . 13 Times Spotted 99 | . 13 47 13 . 26 Peak Tracking Total 16 | . 4 16 7 . 12 Tactical Retreats 7 | . 2 2 1 . 2 Traps | -11 -10 -9 -8 -8 -8 ------- Run | Scr Mat Mat Mat Gar Mat Traps Triggered 2 | . 1 1 . . . Indirectly . | . . . . . . Trap Hack Attempts . | . . . . . . Triggered . | . . . . . . Disarmed . | . . . . . . Reprogrammed . | . . . . . . Reused . | . . . . . . Traps Extracted . | . . . . . . Installed . | . . . . . . Triggered . | . . . . . . Machines | -11 -10 -9 -8 -8 -8 ---------- Run | Scr Mat Mat Mat Gar Mat Machines Disabled 20 | . 7 8 2 . 3 Max in Single Turn 2 | . 2 2 1 . 1 Machines Sabotaged . | . . . . . . Garrisons Compromised . | . . . . . . Overloaded Fab Kills . | . . . . . . Fab Network Shutdowns . | . . . . . . Hacking | -11 -10 -9 -8 -8 -8 --------- Run | Scr Mat Mat Mat Gar Mat Machines Accessed 25 | . 8 7 6 . 4 Terminals 16 | . 6 4 3 . 3 Fabricators . | . . . . . . Repair Stations 1 | . 1 . . . . Recycling Units 4 | . 1 2 1 . . Scanalyzers 3 | . . 1 1 . 1 Garrison Access 1 | . . . 1 . . Total Hacks 67 | . 18 16 18 . 15 Successful 48 | . 11 11 14 . 12 Failed 17 | . 6 5 4 . 2 Catastrophic . | . . . . . . Database Lockouts 3 | . 2 . . . 1 Manual 36 | . 5 7 11 . 13 Terminals 54 | . 15 11 14 . 14 Fabricators . | . . . . . . Repair Stations 1 | . 1 . . . . Recycling Units 7 | . 2 4 1 . . Scanalyzers 3 | . . 1 1 . 1 Garrison Access 2 | . . . 2 . . Terminal Hacks 38 | . 9 8 10 . 11 Record 1 | . 1 . . . . Part Schematic 1 | . . . . . 1 Robot Analysis 2 | . 2 . . . . Prototype ID Bank 17 | . 5 6 4 . 2 Level Access Points 2 | . . . 2 . . Branch Access Points 3 | . . 1 1 . 1 Emergency Access Points 1 | . . . 1 . . Terminal Index 2 | . . . 1 . 1 Garrison Index 1 | . . . . . 1 Unreport Threat 2 | . 1 1 . . . Locate Traps 1 | . . . . . 1 Dispatch Records 1 | . . . . . 1 Transport Status 1 | . . . . . 1 Recall Investigation 1 | . . . 1 . . Recall Reinforcements 1 | . . . . . 1 Hauler Manifests 1 | . . . . . 1 Fabricator Hacks . | . . . . . . Repair Station Hacks 1 | . 1 . . . . Refit 1 | . 1 . . . . Recycling Unit Hacks 4 | . 1 2 1 . . Retrieve Components 4 | . 1 2 1 . . Scanalyzer . | . . . . . . Garrison Access Hacks 1 | . . . 1 . . Unlock Access 1 | . . . 1 . . Unauthorized Hacks 8 | . . 2 4 . 2 Terminals . | . . . . . . Fabricators . | . . . . . . Repair Stations . | . . . . . . Recycling Units . | . . . . . . Scanalyzers 3 | . . 1 1 . 1 Extract 3 | . . 1 1 . 1 Garrison Access 1 | . . . 1 . . Reprogram 1 | . . . 1 . . Data Cores Recovered 1 | . . 1 . . . Used 1 | . . 1 . . . Hacking Detections 17 | . 7 5 3 . 2 Full Trace Events 4 | . 2 2 . . . Feedback Events . | . . . . . . Feedback Blocked . | . . . . . . Robot Schematics Acquired . | . . . . . . Robots Built . | . . . . . . Matter . | . . . . . . Time . | . . . . . . Total Robot Build Rating . | . . . . . . Part Schematics Acquired 10 | . . 1 2 . 7 Parts Built . | . . . . . . Matter . | . . . . . . Time . | . . . . . . Total Part Build Rating . | . . . . . . Parts Repaired . | . . . . . . Time . | . . . . . . Parts Recycled . | . . . . . . Recycled Matter . | . . . . . . Retrieved Matter . | . . . . . . Retrieved Components 20 | . 10 9 1 . . Parts Scanalyzed . | . . . . . . Part Schematics Acquired . | . . . . . . Parts Damaged . | . . . . . . Bothacking | -11 -10 -9 -8 -8 -8 ------------ Run | Scr Mat Mat Mat Gar Mat Used RIF Installer 1 | . . . . 1 . Robots Hacked . | . . . . . . Non-combat . | . . . . . . Combat . | . . . . . . Robot Hacks Applied . | . . . . . . Relay Couplers Released . | . . . . . . Robots Rewired . | . . . . . . Allies Hacked . | . . . . . . Hacks Repelled . | . . . . . . Allies | -11 -10 -9 -8 -8 -8 -------- Run | Scr Mat Mat Mat Gar Mat Total Allies 2 | . . . 2 . . Largest Group 2 | . . . 2 . . Highest-Rated Group 32 | . . . 32 . . Highest-Rated Ally 16 | . . . 16 . . Total Orders . | . . . . . . Ally Attacks 15 | . . . 15 . . Total Damage 165 | . . . 165 . . Kills . | . . . . . . Allies Corrupted . | . . . . . . Allies Melted . | . . . . . . Intel | -11 -10 -9 -8 -8 -8 ------- Run | Scr Mat Mat Mat Gar Mat Robot Analysis Total 2 | . 2 . . . . Derelict Logs Recovered . | . . . . . . Drone Launches . | . . . . . . Drone Recoveries . | . . . . . . Exploration | -11 -10 -9 -8 -8 -8 ------------- Run | Scr Mat Mat Mat Gar Mat Turns Passed 1536 | 16 467 645 172 53 183 Spaces Moved 1799 | 28 502 701 251 95 222 Core 343 | 28 45 223 . . 47 Treads . | . . . . . . Legs . | . . . . . . Wheels . | . . . . . . Hover 1411 | . 457 478 251 95 130 Flight 45 | . . . . . 45 Fastest Speed 40 | 50 50 50 56 56 40 Average Speed 61 | 50 69 62 56 56 54 Slowest Speed 150 | 50 76 150 116 56 120 Overloaded Moves . | . . . . . . Propulsion Burnouts . | . . . . . . Robots Hopped 4 | . . . . . 4 Cave-ins Triggered . | . . . . . . Exploration Rate (%) 37 | 3 66 65 27 40 23 Regions Visited 5 Branch Regions . Pre-discovered Areas . | . . . . . . Known Exits Taken 1 | . . . 1 . . Unknown Exits Taken 3 | 1 1 1 . . . Scrap Searched . | . . . . . . Spaces Dug . | . . . . . . Terrain Destroyed 304 | . 104 146 17 . 37 Melee . | . . . . . . Projectile . | . . . . . . AOE 304 | . 104 146 17 . 37 Actions | -11 -10 -9 -8 -8 -8 --------- Run | Scr Mat Mat Mat Gar Mat Total 2066 | 29 568 843 270 93 263 Wait 32 | . 3 26 3 . . Move 1785 | 27 501 700 250 93 214 Hop 4 | . . . . . 4 Pick Up 44 | 1 11 19 4 . 9 Fast Attach . | . . . . . . Attach 30 | 1 8 12 2 . 7 Detach 3 | . . 1 1 . 1 Swap 13 | . 1 9 1 . 2 Drop 18 | . 5 7 . . 6 Fire 134 | . 39 66 9 . 20 Melee . | . . . . . . Ram 3 | . . 3 . . . Kick . | . . . . . . Crush . | . . . . . . Escape Stasis . | . . . . . . Rewire . | . . . . . . Trap . | . . . . . . Miscellaneous . | . . . . . . Route ------- -11/Scrapyard -10/Materials -9/Materials (discovered 3 exits: *Mat x2 / Min) -8/Materials (discovered 4 exits: *Fac x3 / Gar) -8/Garrison -8/Materials History --------- Turn | Location | Event 7 | -11/Scrapyard | Discovered new exit (range 14) 17 | -11/Scrapyard | Entered Materials 323 | -10/Materials | Lost 4 parts (1p1n2w) 327 | -10/Materials | Central database locked down 362 | -10/Materials | Build established: Mutant 467 | -10/Materials | Discovered new exit (range 16) 484 | -10/Materials | Entered another Materials area 484 | -9/Materials | Evolved 2 slots: Utility x2 524 | -9/Materials | Identified exit to Mines 925 | -9/Materials | Core integrity fell below 50% 949 | -9/Materials | Discovered new exit (range 10) 961 | -9/Materials | Destroyed 14 combat bots 1105 | -9/Materials | Discovered new exit (range 4) 1117 | -9/Materials | Build established: Hacker-Mutant 1129 | -9/Materials | Entered another Materials area 1129 | -8/Materials | Evolved 2 slots: Propulsion x1, Utility x1 1164 | -8/Materials | Identified exit to Factory 1274 | -8/Materials | Identified exit to Garrison 1297 | -8/Materials | Garrison activated, responded to threat 1301 | -8/Materials | Entered Garrison 1320 | -8/Garrison | Triggered checkpoint 1340 | -8/Garrison | Discovered new exit (range 12) 1350 | -8/Garrison | Installed Relay Interface Framework 1354 | -8/Garrison | Entered Materials 1430 | -8/Materials | Central database locked down 1489 | -8/Materials | Lost 4 parts (1n1u2w) 1537 | -8/Materials | Self-destructed Last Messages --------------- 01490_ Acquired Imp. Datajack. 01491_ U-05 Engineer lays Concrete. 01491_ U-05 Engineer builds a Wall. 01491_ U-05 Engineer lays Concrete. 01492_ K-01 Serf collects debris. 01493_ U-05 Engineer builds a Wall. 01494_ K-01 Serf collects debris. 01502_ W-25 Informer distress signal jammed. 01505_ G-47 Trooper destroyed. 01505_ Dropped Shock Rifle. 01506_ W-25 Informer distress signal jammed. 01511_ Acquired Imp. Deuterium Engine. 01515_ Dropped Imp. Deuterium Engine. 01519_ Flight Unit destroyed. 01522_ Acquired Hpw. Shotgun. 01532_ W-25 Informer distress signal jammed. 01536_ Imp. Deuterium Engine destroyed. 01536_ W-25 Informer distress signal jammed. 01537_ Imp. Datajack destroyed. 01537_ W-25 Informer distress signal jammed. Map ----- +----------------------------------------------------+ | ?????????????????????????????????????????????????? | | ?????????????????????????????????????????????????? | | ?????????????????????????????????????????????????? | | ?????????????????????????????????????????????????? | | ?????????????????????????????????????????????????? | | ?????????????????????????????????????????????????? | | ?????????????????????????????????????????????????? | | ?????????????????????????????????????????????????? | | ??????????????????????????????? ?????????????????? | | ????????????????????????????###+###??????????????? | | ????????????????????????????? #??????????????? | | ????????????????????????????? ???????????????? | | ????????????????????????????? ???????????????? | | ????????????????????????????? ???????????????? | | ????????????????????????????? ???????????????? | | ?????????????????????????????# #???????????????? | | ???????????????????????????### #???????????????? | | ????????????????????????????" #???????????????? | | ????????????????????????????" ##??????????????? | | ?????????????????????????????" ???????????????? | | ?????????????????????????????# #???????????????? | | ??????????????????????######## #######?????????? | | ??????????????????????# # # #?????????? | | ??????????????????????# # # #?????????? | | ??????????????????????# g/ # #?????????? | | ??????????????????????# @ w# # #?????????? | | ??????????????????????# g/g + "T" #?????????? | | ??????????????????????# g#g w# """ #?????????? | | ??????????????????????######## # #?????????? | | ????????????????????????????## #######???????### | | ????????????????????????????# ############## | | ????????????????????????????# % | | ????????????????????????????# | | ????????????????????????????# | | ????????????????????????????# #### #### | | ????????????????????????????## ##??# #??## | | ?????????????????????????????# #???# **==#???# | | ?????????????????????????????# #???# *==#???#[ | | ?????????????????????????????# #???########???# | | ?????????????????###########?# #???## #?????# | | ?????????????????# #?# #????#####?????# | | ?????????????????#= ### ################ | | ?????????????????# # ^^ | | ?????????????????# """ + | | ?????????????????# "S """ # | | ?????????????????# """ """ ####/######+## # ###### | | ?????????????????# "" ## [ # #????? | | ?????????????????# ##""" [ # #??? | | ?????????????????############""" #??# " | | ????????????????????????????#""" #??# " | +----------------------------------------------------+ Best States ------------- Heat Dissipation 31 Energy Generation 16 Energy Capacity 590 Matter Stores 300 Matter Capacity 300 Sight Range 20 Robot Scan Range 13 Terrain Scan Density 10 Jamming Range 8 Additional Mass Support 9 Resistance: KI 20 Resistance: TH 20 Resistance: EX 20 Resistance: EM 20 Resistance: I 20 Resistance: S 20 Resistance: P 20 Evasion (%) 62 Targeting Accuracy 10 Offensive Hacking 30 Item Schematics ----------------- Imp. Aluminum Leg | -9/Materials | Extracted Autogun | -8/Materials | Extracted Reflective Plating | -8/Materials | Extracted Cesium-ion Thruster | -8/Materials | Hacked Imp. Ion Engine | -8/Materials | Extracted Integration Mediator | -8/Materials | Extracted Imp. Power Shielding | -8/Materials | Extracted Hcp. Matter Pod | -8/Materials | Extracted Imp. Light Armor Plating | -8/Materials | Extracted Hvy. Ion Engine | -8/Materials | Extracted Robot Schematics ------------------ None Fabricated ------------ Nothing Alien Tech Used ----------------- None Achievements -------------- None Challenges ------------ None Game ------ Seed MachineLargeStorm Manual? 0 Play Time 00:24:09 Cumulative 467.5 hours Start 2020.08.19 @ 21:29:14 End 2020.08.19 @ 21:49:33 Sessions 1 Manual Loads 0 Difficulty Adventurer Special Mode None Game No. 125 Rogue 1 Adventurer 124 Explorer 0 Win Type - Total 2 Types 1/0/0/1/0/0/0 Lore% 44 Gallery% 68 Achievement% 52 Wizard Run 0 Options --------- ASCII 0 Keyboard 0 Movement Numpad Keybinds 0 Fullscreen 1 Font 12/Smallcaps Map View 83x54 Tactical HUD 1 Map Filters NONE Filters NONE Steam X RUN: 3ce7b241-6f1a-4617-8c82-563cf0db1d7f